bitfinex/quotes_BTCUSD_20251009
["timestamp","ask_amount","ask_price","bid_price","bid_amount"]
[1760017585818,1.33789546,122860.0,122850.0,1e-08]
[1760017586037,1.39840406,122860.0,122850.0,1e-08]
[1760017586270,0.88849771,122860.0,122850.0,1e-08]
[1760017586501,0.31097771,122860.0,122850.0,1e-08]
[1760017586713,0.66824547,122860.0,122850.0,1e-08]
[1760017586918,1.00924547,122860.0,122850.0,1e-08]
[1760017587138,0.65197771,122860.0,122850.0,1e-08]
[1760017587600,0.65097771,122860.0,122850.0,1e-08]
[1760017587820,1.00824547,122860.0,122850.0,0.00100001]
[1760017588031,1.00816453,122860.0,122850.0,0.00100001]
[1760017588677,1.16816452,122860.0,122850.0,0.00100001]
[1760017588859,1.40572452,122860.0,122850.0,0.00100001]
[1760017589119,1.06816453,122860.0,122850.0,1e-08]
[1760017589349,0.28785565,122860.0,122850.0,0.00100001]
[1760017589558,0.59927565,122860.0,122850.0,0.00100001]
[1760017589763,0.62785565,122860.0,122850.0,1e-08]
[1760017589973,0.09648874,122860.0,122850.0,0.19295207]
[1760017590194,0.25927565,122860.0,122850.0,0.19295207]
[1760017590607,0.25927565,122860.0,122850.0,0.43071207]
[1760017590820,0.07499874,122860.0,122850.0,0.23064207]
[1760017591034,0.25927565,122860.0,122850.0,0.03015191]
[1760017591253,0.25927565,122860.0,122850.0,0.26791191]
[1760017591895,0.2591857,122860.0,122850.0,0.26791191]
[1760017592083,0.2591857,122860.0,122850.0,0.03015191]
[1760017592292,0.2591857,122860.0,122850.0,0.03115191]
[1760017592497,0.2591857,122860.0,122850.0,0.26883191]
[1760017592699,0.2591857,122860.0,122850.0,0.27083191]
[1760017592914,0.2591857,122860.0,122850.0,0.26983191]
[1760017593204,0.2591857,122860.0,122850.0,0.03015191]
[1760017593444,0.1776957,122860.0,122850.0,0.20946207]
[1760017593663,0.1991857,122860.0,122850.0,0.26975191]
[1760017594078,0.1991857,122860.0,122850.0,0.03215191]
[1760017594255,0.1991857,122860.0,122850.0,0.03115191]
[1760017594487,0.58503346,122860.0,122850.0,0.23852001]
[1760017594699,0.58503346,122860.0,122850.0,1e-08]
[1760017595172,0.66815552,122860.0,122850.0,0.00100001]
[1760017595372,1.24571552,122860.0,122850.0,1e-08]
[1760017595598,1.00815552,122860.0,122850.0,0.00100001]
[1760017595807,1.30579552,122860.0,122850.0,0.00100001]
[1760017596016,0.71088776,122860.0,122850.0,1e-08]
[1760017596220,1.31321111,122860.0,122850.0,1e-08]
[1760017596440,1.07561111,122860.0,122850.0,1e-08]
[1760017596571,1.31321111,122860.0,122850.0,1e-08]
[1760017596778,0.71834335,122860.0,122850.0,1e-08]
[1760017597125,0.1628036,122850.0,122840.0,0.0301519]
[1760017597332,0.19232239,122850.0,122840.0,0.03030414]
[1760017597465,0.02951879,122850.0,122840.0,0.19311755]
[1760017597692,0.19231895,122850.0,122840.0,0.20913308]
[1760017597892,0.21380895,122850.0,122840.0,0.19362308]
[1760017598194,0.21380895,122850.0,122840.0,0.43122308]
[1760017598450,0.21380895,122850.0,122840.0,0.19362308]
[1760017598621,0.21380895,122850.0,122840.0,0.43122308]
[1760017598868,0.21380895,122850.0,122840.0,0.26836967]
[1760017599018,0.21380895,122850.0,122840.0,0.03080967]
[1760017599222,0.21380895,122850.0,122840.0,0.43114308]
[1760017599423,0.21380895,122850.0,122840.0,0.43214308]
[1760017599880,0.21380895,122850.0,122840.0,0.03180967]
[1760017600023,0.21380895,122850.0,122840.0,0.19462308]
[1760017600259,0.21380895,122850.0,122840.0,0.43210308]
[1760017600470,0.25140691,122860.0,122840.0,0.23291308]
[1760017600471,0.22279078,122860.0,122840.0,0.23291308]
[1760017600710,0.17741016,122850.0,122840.0,0.47035308]
[1760017601110,0.17741016,122850.0,122840.0,0.44823308]
[1760017601355,0.17741016,122850.0,122840.0,0.47035308]
[1760017601764,0.17741016,122850.0,122840.0,0.46935308]
[1760017601954,0.19903016,122850.0,122840.0,0.03080967]
[1760017602158,0.19903016,122850.0,122840.0,0.03180967]
[1760017602383,0.21398279,122850.0,122840.0,0.26916967]
[1760017602649,0.21398279,122850.0,122840.0,0.26812967]
[1760017602876,1.03046852,122850.0,122840.0,0.00165777]
[1760017603326,1.26790852,122850.0,122840.0,0.00165777]
[1760017604827,1.26790852,122850.0,122840.0,0.00065777]
[1760017605026,0.67320076,122850.0,122840.0,0.00065777]
[1760017605231,0.2214587,122850.0,122840.0,0.03180967]
[1760017605612,0.2214587,122850.0,122840.0,0.03080967]
[1760017606013,0.2214587,122850.0,122840.0,0.03180967]
[1760017606389,0.2214587,122850.0,122840.0,0.20929857]
[1760017606602,0.2214587,122850.0,122840.0,0.19462308]
[1760017606808,0.2214587,122850.0,122840.0,0.03180967]
[1760017607015,0.2214587,122850.0,122840.0,0.04650501]
[1760017607233,0.2214587,122850.0,122840.0,0.03180967]
[1760017607433,0.2214587,122850.0,122840.0,0.19462308]
[1760017607662,0.1998387,122850.0,122840.0,0.05335967]
[1760017607870,0.2202787,122850.0,122840.0,0.03180967]
[1760017608305,0.68900852,122850.0,122840.0,0.00165777]
[1760017608502,0.70629048,122850.0,122840.0,0.00165777]
[1760017609121,0.90902076,122850.0,122840.0,0.00165777]
[1760017609309,1.04631472,122850.0,122840.0,0.00165777]
[1760017609572,1.28379762,122850.0,122840.0,0.00165777]
[1760017610455,0.68908986,122850.0,122840.0,1e-08]
[1760017610669,0.16288385,122790.0,122770.0,0.17522034]
[1760017610886,0.19200648,122790.0,122780.0,0.16289297]
[1760017611088,0.21244648,122790.0,122780.0,0.23768]
[1760017611509,0.21244648,122790.0,122770.0,0.42175563]
[1760017611728,0.16289297,122780.0,122770.0,0.08518776]
[1760017611934,0.1982856,122780.0,122770.0,0.5179259]
[1760017612142,0.1982856,122780.0,122770.0,0.485774]
[1760017612351,0.1982856,122780.0,122770.0,0.00050776]
[1760017612563,0.1982856,122780.0,122770.0,0.23814776]
[1760017612804,0.1982856,122780.0,122770.0,0.00050776]
[1760017612805,0.58389336,122780.0,122770.0,0.00050776]
[1760017613030,0.67505145,122780.0,122770.0,0.00050776]
[1760017613238,0.67505145,122780.0,122770.0,0.00150776]
[1760017613650,0.67505145,122780.0,122770.0,0.00350776]
[1760017614211,0.67505145,122780.0,122770.0,0.00150776]
[1760017614402,0.67505145,122780.0,122770.0,0.00050776]
[1760017614608,0.67505145,122780.0,122770.0,0.00150776]
[1760017614809,0.2266256,122780.0,122770.0,0.00150776]
[1760017615012,0.1982856,122780.0,122770.0,0.00050776]
[1760017615210,0.22670418,122780.0,122770.0,0.00050776]
[1760017615417,0.58397194,122780.0,122770.0,0.00050776]
[1760017615685,0.58397194,122780.0,122770.0,0.00150776]
[1760017615886,0.667094,122780.0,122770.0,0.00150776]
[1760017616132,0.30982624,122780.0,122770.0,0.00150776]
[1760017616449,0.16290624,122770.0,122760.0,0.31930776]
[1760017616659,0.21254745,122770.0,122760.0,0.31945906]
[1760017616889,0.24088745,122770.0,122760.0,0.32350606]
[1760017617256,0.21254745,122770.0,122760.0,0.48642557]
[1760017617860,0.04964121,122770.0,122760.0,0.24870557]
[1760017618070,0.01501752,122770.0,122760.0,0.43014953]
[1760017618277,0.16289312,122780.0,122770.0,0.16290624]
[1760017618454,0.22668833,122780.0,122770.0,0.23772]
[1760017618644,0.16290624,122770.0,122760.0,0.19322262]
[1760017618842,0.2125316,122770.0,122760.0,0.0001513]
[1760017619071,1.15958413,122770.0,122760.0,0.0001513]
[1760017619293,1.15958413,122770.0,122760.0,0.0041983]
[1760017619626,1.15958413,122770.0,122760.0,0.0051983]
[1760017619852,0.5808716,122770.0,122760.0,0.0051983]
[1760017620057,0.04962536,122770.0,122760.0,0.43606971]
[1760017620261,0.02918536,122770.0,122760.0,0.21446971]
[1760017620472,0.01501536,122770.0,122760.0,0.43424177]
[1760017620677,0.01417,122790.0,122780.0,0.16289297]
[1760017620893,0.02917951,122790.0,122780.0,0.41698226]
[1760017621111,0.02917951,122790.0,122780.0,0.23079487]
[1760017621303,0.01500951,122790.0,122780.0,0.34433693]
[1760017621534,0.02917951,122790.0,122780.0,0.23987857]
[1760017621770,0.01500951,122790.0,122780.0,0.23079487]
[1760017622200,0.01500951,122790.0,122780.0,0.49913487]
[1760017622609,0.1926715,122810.0,122790.0,0.19302034]
[1760017622826,0.20768376,122810.0,122800.0,0.23792]
[1760017623026,0.16286644,122800.0,122790.0,0.1148319]
[1760017623264,0.1778787,122800.0,122790.0,0.3527119]
[1760017623430,0.1983187,122800.0,122790.0,0.27771161]
[1760017623649,0.1983187,122800.0,122790.0,0.0301519]
[1760017623796,0.16287971,122790.0,122780.0,0.0321519]
[1760017624005,0.22090879,122790.0,122780.0,0.002]
[1760017624217,0.16291951,122760.0,122750.0,0.08468]
[1760017624434,0.21253545,122760.0,122750.0,0.28064]
[1760017624639,0.21253545,122760.0,122750.0,0.44357279]
[1760017624985,0.02917594,122760.0,122750.0,0.44357279]
[1760017625190,0.02917594,122760.0,122750.0,0.45977279]
[1760017626047,0.02917594,122760.0,122750.0,0.53184469]
[1760017626240,0.01417,122760.0,122750.0,0.29596469]
[1760017626451,0.01417,122760.0,122750.0,0.53835794]
[1760017626660,0.17791218,122770.0,122760.0,0.16291951]
[1760017626888,0.16291951,122760.0,122750.0,0.0689019]
[1760017627091,0.19836545,122760.0,122750.0,0.19608469]
[1760017627298,0.19836545,122760.0,122750.0,0.51852469]
[1760017627504,0.19836779,122760.0,122740.0,0.10088]
[1760017627703,0.19836779,122760.0,122750.0,0.23776]
[1760017628143,0.16293279,122750.0,122740.0,0.19309728]
[1760017628349,0.19754279,122750.0,122740.0,0.51553728]
[1760017629118,0.03461,122750.0,122740.0,0.51553728]
[1760017629340,0.22511279,122750.0,122740.0,0.16509736]
[1760017629548,0.24009603,122750.0,122740.0,0.0868313]
[1760017629740,0.24009603,122750.0,122740.0,0.3244713]
[1760017629946,0.24009603,122750.0,122740.0,0.3224713]
[1760017630205,0.04959324,122750.0,122740.0,0.24877736]
[1760017630337,0.19754279,122750.0,122740.0,0.48841736]
[1760017630532,0.04959324,122750.0,122740.0,0.48841736]
[1760017630753,0.03461,122750.0,122740.0,0.48641736]
[1760017631148,0.19754279,122750.0,122740.0,0.48641736]
[1760017631349,0.24009151,122750.0,122740.0,0.48641736]
[1760017631969,0.24009151,122750.0,122740.0,0.24877736]
[1760017632184,1.19910538,122750.0,122740.0,0.0011513]
[1760017632526,1.44476456,122750.0,122740.0,0.0011513]
[1760017632730,1.44476456,122750.0,122740.0,0.0021513]
[1760017632853,1.20716456,122750.0,122740.0,0.0021513]
[1760017633059,1.20716456,122750.0,122740.0,0.0011513]
[1760017633283,1.20716456,122750.0,122740.0,0.0021513]
[1760017633549,1.30716455,122750.0,122740.0,1e-08]
[1760017633972,0.50297262,122720.0,122710.0,0.0004]
[1760017634180,0.59964659,122720.0,122710.0,0.0004]
[1760017634374,0.67764537,122720.0,122710.0,0.0004]
[1760017634586,0.70521537,122720.0,122710.0,0.0004]
[1760017634786,0.70521537,122720.0,122710.0,0.00697906]
[1760017635136,0.64800659,122720.0,122710.0,0.00697906]
[1760017635566,0.03434191,122720.0,122710.0,0.16996496]
[1760017635766,0.19731453,122720.0,122710.0,0.00697906]
[1760017635982,0.22488453,122720.0,122710.0,0.00797906]
[1760017636423,0.80359706,122720.0,122710.0,0.00797906]
[1760017636744,0.38800339,122720.0,122710.0,0.00797906]
[1760017636944,0.88359386,122720.0,122710.0,0.00797906]
[1760017637068,0.88359386,122720.0,122710.0,0.00697906]
[1760017637471,1.12115386,122720.0,122710.0,0.00797906]
[1760017638282,1.12111386,122720.0,122710.0,0.00797906]
[1760017638481,1.20579386,122720.0,122710.0,0.00797906]
[1760017638706,0.88359386,122720.0,122710.0,0.00697906]
[1760017638885,1.20579386,122720.0,122710.0,0.00697906]
[1760017639093,1.26579386,122720.0,122710.0,0.00697906]
[1760017639378,0.16302575,122680.0,122660.0,0.32812736]
[1760017639580,0.0134,122670.0,122660.0,0.32812736]
[1760017639738,0.03419,122670.0,122660.0,0.32812736]
[1760017640093,0.0134,122670.0,122660.0,0.38003926]
[1760017640300,0.17719945,122700.0,122690.0,0.16301247]
[1760017640301,0.35417,122700.0,122690.0,0.16301247]
[1760017640527,0.16301247,122690.0,122680.0,0.40058292]
[1760017640760,0.16302575,122680.0,122670.0,0.2376]
[1760017640975,0.16303904,122670.0,122660.0,0.001]
[1760017641397,0.2675511,122670.0,122660.0,0.001]
[1760017641618,0.01295,122680.0,122670.0,0.16303904]
[1760017641840,0.28048781,122680.0,122670.0,0.16303904]
[1760017642068,0.16303904,122670.0,122660.0,0.16304437]
[1760017642277,0.28621781,122680.0,122670.0,0.16303904]
[1760017642495,0.30760781,122680.0,122660.0,0.41701437]
[1760017642904,0.30760781,122680.0,122670.0,0.16303904]
[1760017643155,0.01295,122680.0,122670.0,0.17934294]
[1760017643386,0.38141372,122700.0,122690.0,0.16301247]
[1760017643595,0.64892507,122700.0,122680.0,0.16302418]
[1760017643805,0.14592578,122700.0,122690.0,0.16301247]
[1760017644017,0.03568372,122700.0,122690.0,0.40069247]
[1760017644469,0.01429372,122700.0,122690.0,0.18463247]
[1760017644695,0.00012372,122700.0,122690.0,0.49858437]
[1760017644907,0.00012372,122700.0,122690.0,0.26090437]
[1760017645120,0.00012372,122700.0,122690.0,0.49854437]
[1760017645344,0.00012372,122700.0,122690.0,0.49858437]
[1760017645557,0.00012372,122700.0,122690.0,0.34402643]
[1760017645793,0.00012372,122700.0,122690.0,0.66650643]
[1760017646219,0.00012372,122700.0,122690.0,0.23203437]
[1760017646426,0.03568372,122700.0,122690.0,0.51664437]
[1760017646630,0.01429372,122700.0,122690.0,0.55451437]
[1760017646836,0.00012372,122700.0,122690.0,0.55451437]
[1760017647064,0.03568372,122700.0,122690.0,0.25077247]
[1760017647283,0.01429372,122700.0,122690.0,0.48849247]
[1760017647502,0.00012372,122700.0,122690.0,0.43178643]
[1760017647725,0.00012372,122700.0,122690.0,0.66946643]
[1760017647952,0.17246908,122730.0,122720.0,0.19312452]
[1760017647953,0.00135484,122730.0,122720.0,0.19312452]
[1760017648179,0.00135484,122730.0,122720.0,0.58338452]
[1760017648684,0.00135484,122730.0,122720.0,1.00662658]
[1760017648933,0.00135484,122730.0,122720.0,0.76874658]
[1760017649798,0.00135484,122730.0,122720.0,1.00658658]
[1760017650205,0.00135484,122730.0,122720.0,1.00654658]
[1760017650775,0.00135484,122730.0,122720.0,0.76874658]
[1760017650978,0.00135484,122730.0,122720.0,1.00654658]
[1760017651198,0.00135484,122730.0,122720.0,0.76874658]
[1760017651376,0.00135484,122730.0,122720.0,1.00650658]
[1760017651990,0.00135484,122730.0,122720.0,1.00662658]
[1760017652230,0.00135484,122730.0,122720.0,0.76874658]
[1760017652588,0.00135484,122730.0,122720.0,1.00670658]
[1760017652999,0.00135484,122730.0,122720.0,0.76874658]
[1760017653200,0.00135484,122730.0,122720.0,0.68398658]
[1760017653411,0.00135484,122730.0,122720.0,0.68598658]
[1760017653822,0.00135484,122730.0,122720.0,1.10970658]
[1760017654033,0.00135484,122730.0,122720.0,1.34762658]
[1760017654470,0.00135484,122730.0,122720.0,1.10970658]
[1760017654748,0.0074971,122770.0,122760.0,0.16291951]
[1760017654955,0.00764949,122770.0,122760.0,0.40622719]
[1760017655172,0.00764949,122770.0,122760.0,0.44796061]
[1760017655374,0.00764949,122770.0,122760.0,0.36324061]
[1760017655562,0.00764949,122770.0,122760.0,0.44796061]
[1760017655893,0.00764949,122770.0,122760.0,0.44896061]
[1760017656089,0.00764949,122770.0,122760.0,0.68692061]
[1760017656702,0.00764949,122770.0,122760.0,0.44896061]
[1760017656903,0.00015239,122770.0,122760.0,0.68688061]
[1760017657096,0.00015239,122770.0,122760.0,0.44896061]
[1760017657309,0.00015239,122770.0,122760.0,0.68684061]
[1760017657736,0.00015239,122770.0,122760.0,0.78896061]
[1760017657940,1e-08,122770.0,122760.0,0.78896061]
[1760017658342,0.0074971,122810.0,122800.0,0.19301834]
[1760017658584,0.0074971,122810.0,122800.0,0.3053149]
[1760017658585,0.00800478,122810.0,122800.0,0.3053149]
[1760017658714,0.00800478,122810.0,122800.0,0.67780696]
[1760017658930,0.00800478,122810.0,122800.0,0.35520696]
[1760017659134,0.00800478,122810.0,122800.0,0.43992696]
[1760017659338,0.00800478,122810.0,122800.0,0.67776696]
[1760017659537,0.00800478,122810.0,122800.0,0.35620696]
[1760017659778,0.00800478,122810.0,122800.0,0.19334052]
[1760017659970,0.00800478,122810.0,122800.0,0.5676949]
[1760017660176,0.00800478,122810.0,122800.0,0.3617549]
[1760017660325,0.00050768,122810.0,122800.0,0.5995149]
[1760017660528,0.00050768,122810.0,122800.0,0.2770349]
[1760017660728,0.16336086,122810.0,122800.0,0.5995149]
[1760017660994,0.16336086,122810.0,122800.0,0.5666949]
[1760017660995,0.16740791,122810.0,122800.0,0.5666949]
[1760017661194,0.16740791,122810.0,122800.0,0.4798949]
[1760017661394,0.00455473,122810.0,122800.0,0.3587549]
[1760017661718,0.00455473,122810.0,122800.0,0.5993949]
[1760017662082,0.00455473,122810.0,122800.0,0.3607549]
[1760017662297,0.00455473,122810.0,122800.0,0.5963549]
[1760017662608,0.00455473,122810.0,122800.0,0.5993149]
[1760017662815,0.00455473,122810.0,122800.0,0.3607549]
[1760017663053,0.00455473,122810.0,122800.0,0.5982749]
[1760017663269,0.00455473,122810.0,122800.0,0.3607549]
[1760017663451,0.00455473,122810.0,122800.0,0.5982749]
[1760017663661,0.00455473,122810.0,122800.0,0.3607549]
[1760017663878,0.00455473,122810.0,122800.0,0.5982749]
[1760017664086,0.00455473,122810.0,122800.0,0.5992349]
[1760017664286,0.00455473,122810.0,122800.0,0.68231696]
[1760017664710,0.00455473,122810.0,122800.0,1.02227696]
[1760017665098,0.00455473,122810.0,122800.0,0.78287696]
[1760017665299,0.00455473,122810.0,122800.0,1.01927696]
[1760017665651,0.00455473,122810.0,122800.0,1.02227696]
[1760017666018,0.00455473,122810.0,122800.0,0.78487696]
[1760017666449,0.00767603,122840.0,122830.0,0.16282667]
[1760017666634,0.00035227,122840.0,122830.0,0.60241586]
[1760017666836,0.00035227,122840.0,122830.0,0.65273586]
[1760017667073,0.00186906,122840.0,122830.0,0.65285586]
[1760017667280,0.00186906,122840.0,122830.0,0.41541586]
[1760017667476,0.00186906,122840.0,122830.0,0.65285586]
[1760017667777,0.00186906,122840.0,122830.0,0.44656776]
[1760017667975,0.00186906,122840.0,122830.0,1.36280776]
[1760017668182,0.00186906,122840.0,122830.0,1.12540776]
[1760017668328,0.00186906,122840.0,122830.0,1.36276776]
[1760017668728,0.00186906,122840.0,122830.0,1.12540776]
[1760017669578,0.00186906,122840.0,122830.0,1.36272776]
[1760017670135,0.00186906,122840.0,122830.0,1.12540776]
[1760017670543,0.00186906,122840.0,122830.0,1.36268776]
[1760017671174,0.00186906,122840.0,122830.0,1.36260776]
[1760017672217,0.00186906,122840.0,122830.0,1.12540776]
[1760017672990,0.00186906,122840.0,122830.0,1.36248776]
[1760017673196,0.00186906,122840.0,122830.0,1.12540776]
[1760017673392,0.00186906,122840.0,122830.0,1.36244776]
[1760017673573,0.00186906,122840.0,122830.0,1.12540776]
[1760017674014,0.00186906,122840.0,122830.0,1.36240776]
[1760017674216,0.00186906,122840.0,122830.0,1.12540776]
[1760017674542,0.00186906,122840.0,122830.0,1.36236776]
[1760017674745,0.00186906,122840.0,122830.0,1.12540776]
[1760017675161,0.00934529,122840.0,122830.0,0.75525586]
[1760017675359,0.02294529,122840.0,122830.0,0.72513586]
[1760017675556,0.01546906,122840.0,122830.0,0.72513586]
[1760017675733,0.00186906,122840.0,122830.0,0.99213586]
[1760017675937,0.00186906,122840.0,122830.0,0.78540776]
[1760017676139,0.00186906,122840.0,122830.0,1.02240776]
[1760017676346,0.00186906,122840.0,122830.0,0.78540776]
[1760017676759,0.00186906,122840.0,122830.0,1.36244776]
[1760017677484,0.00186906,122840.0,122830.0,1.12540776]
[1760017677873,0.00186906,122840.0,122830.0,1.36236776]
[1760017678101,0.00186906,122840.0,122830.0,1.36207851]
[1760017680426,0.00186906,122840.0,122830.0,1.12511851]
[1760017680633,0.00186906,122840.0,122830.0,1.36207851]
[1760017680849,0.00186906,122840.0,122830.0,1.12511851]
[1760017681513,1e-08,122840.0,122830.0,1.12511851]
[1760017681731,1e-08,122840.0,122830.0,1.1501185]
[1760017682576,1e-08,122840.0,122830.0,1.3870385]
[1760017682911,1e-08,122840.0,122830.0,1.1501185]
[1760017683763,1e-08,122840.0,122830.0,1.12511851]
[1760017683963,1e-08,122840.0,122830.0,0.84479942]
[1760017684175,1e-08,122840.0,122830.0,0.78452752]
[1760017684372,0.01360001,122840.0,122830.0,0.78452752]
[1760017684568,0.03500001,122840.0,122830.0,0.74945677]
[1760017684889,0.01360001,122840.0,122830.0,0.62305586]
[1760017685101,1e-08,122840.0,122830.0,0.38625586]
[1760017685360,1e-08,122840.0,122830.0,0.41637586]
[1760017685693,1e-08,122840.0,122830.0,1.02336776]
[1760017685965,1e-08,122840.0,122830.0,0.78652776]
[1760017686095,1e-08,122840.0,122830.0,1.02336776]
[1760017686299,1e-08,122840.0,122830.0,0.70188776]
[1760017686499,1e-08,122840.0,122830.0,1.36208776]
[1760017687218,0.00747624,122840.0,122830.0,1.36208776]
[1760017688364,0.00747624,122840.0,122830.0,0.70188776]
[1760017688563,0.00747624,122840.0,122830.0,1.12516776]
[1760017688774,0.00747624,122840.0,122830.0,1.36196776]
[1760017688986,0.00751106,122840.0,122830.0,0.69455712]
[1760017689200,0.00751106,122840.0,122830.0,1.35463712]
[1760017689417,0.00751106,122840.0,122830.0,1.09249262]
[1760017689759,0.00751106,122840.0,122830.0,1.32929262]
[1760017690204,0.00751106,122840.0,122830.0,1.09249262]
[1760017690411,0.00506886,122840.0,122830.0,1.09249262]
[1760017690616,0.00506886,122840.0,122830.0,1.32925262]
[1760017690859,1e-08,122840.0,122830.0,1.1531381]
[1760017691060,1e-08,122840.0,122830.0,1.32929262]
[1760017691681,0.02858783,122880.0,122870.0,0.19292556]
[1760017692027,0.02858783,122880.0,122870.0,0.54078212]
[1760017692028,0.02874002,122880.0,122870.0,0.54078212]
[1760017692235,0.03076149,122880.0,122870.0,0.56183212]
[1760017692353,0.2140719,122880.0,122870.0,0.54078212]
[1760017692561,0.05131149,122880.0,122870.0,0.27387022]
[1760017692766,0.17853407,122880.0,122870.0,0.29492022]
[1760017693040,0.1945219,122880.0,122870.0,0.53160022]
[1760017693189,0.03242204,122880.0,122870.0,0.53160022]
[1760017693389,0.18019462,122880.0,122870.0,0.53160022]
[1760017693729,0.03242204,122880.0,122870.0,0.53160022]
[1760017693928,0.01743421,122880.0,122870.0,0.32507212]
[1760017694153,0.01743421,122880.0,122870.0,0.56171212]
[1760017694359,0.00317366,122880.0,122870.0,0.67561363]
[1760017694570,0.03646963,122900.0,122890.0,0.19289907]
[1760017694767,0.0214818,122900.0,122890.0,0.24521254]
[1760017694891,0.0553118,122900.0,122890.0,0.44579254]
[1760017695185,0.0214818,122900.0,122890.0,0.51345254]
[1760017695407,0.06530616,122910.0,122900.0,0.19288583]
[1760017695611,0.06530616,122920.0,122910.0,0.19287258]
[1760017695828,0.0655309,122920.0,122910.0,0.23244561]
[1760017696042,0.06407049,122920.0,122910.0,0.23244561]
[1760017696253,0.06407049,122920.0,122910.0,0.25667118]
[1760017696254,0.03669437,122920.0,122910.0,0.25667118]
[1760017696491,0.02163396,122920.0,122910.0,0.49335118]
[1760017696716,0.02163396,122920.0,122910.0,0.22519118]
[1760017696925,0.03523396,122920.0,122910.0,0.46195118]
[1760017697346,0.16272068,122910.0,122900.0,0.17786165]
[1760017697562,0.60453573,122910.0,122900.0,0.08464]
[1760017697772,0.03235438,122910.0,122900.0,0.52021244]
[1760017697992,0.22034027,122920.0,122910.0,0.16272068]
[1760017698198,0.16272068,122910.0,122900.0,0.01513]
[1760017698417,0.16274717,122890.0,122870.0,0.24741344]
[1760017698632,0.03494229,122900.0,122880.0,0.48154011]
[1760017698840,0.01328,122900.0,122890.0,0.41535717]
[1760017699049,0.16274717,122890.0,122880.0,0.22909221]
[1760017699258,0.02055,122890.0,122880.0,0.29268231]
[1760017699464,0.02055,122890.0,122880.0,0.53012231]
[1760017699662,0.18329717,122890.0,122880.0,0.53012231]
[1760017700080,0.19059717,122890.0,122870.0,0.18621381]
[1760017700293,0.23644868,122890.0,122880.0,0.08564]
[1760017700514,0.59430887,122890.0,122880.0,0.08564]
[1760017700722,0.61162019,122890.0,122880.0,0.32304]
[1760017700930,0.27542229,122890.0,122880.0,0.32308]
[1760017701176,0.16278691,122860.0,122850.0,0.01513]
[1760017701442,0.03399,122860.0,122850.0,0.51503206]
[1760017701672,0.19677691,122860.0,122850.0,0.19295206]
[1760017701926,0.19677691,122860.0,122850.0,0.51503206]
[1760017701927,0.03399,122860.0,122850.0,0.51503206]
[1760017702180,0.20170738,122870.0,122860.0,0.16278691]
[1760017702181,0.17621366,122870.0,122860.0,0.16278691]
[1760017702412,0.17621366,122870.0,122860.0,0.41605658]
[1760017702644,0.17621366,122870.0,122860.0,0.23890487]
[1760017702873,0.19676366,122870.0,122860.0,0.23890487]
[1760017703107,0.19676366,122870.0,122860.0,0.23886487]
[1760017703331,0.22757366,122870.0,122860.0,0.00150487]
[1760017703559,0.22757366,122870.0,122860.0,0.23882487]
[1760017703783,0.22757366,122870.0,122860.0,0.08614487]
[1760017704031,0.22757366,122870.0,122860.0,0.32442487]
[1760017704247,0.22757366,122870.0,122860.0,0.08714487]
[1760017704473,0.22757366,122870.0,122860.0,0.32442487]
[1760017704681,0.19676366,122870.0,122860.0,0.08814487]
[1760017704886,0.19676366,122870.0,122860.0,0.32438487]
[1760017705109,0.19676366,122870.0,122860.0,0.32534487]
[1760017705632,0.72344508,122870.0,122860.0,0.23966487]
[1760017705859,0.74077519,122870.0,122860.0,0.24066487]
[1760017706085,0.74077519,122870.0,122860.0,0.23966487]
[1760017706298,0.74077519,122870.0,122860.0,0.00250487]
[1760017706500,0.74077519,122870.0,122860.0,0.24066487]
[1760017706706,0.74077519,122870.0,122860.0,0.23970487]
[1760017707149,0.74077519,122870.0,122860.0,0.00150487]
[1760017707361,0.382915,122870.0,122860.0,0.00150487]
[1760017707558,0.382915,122870.0,122860.0,0.00250487]
[1760017707559,0.32802583,122870.0,122860.0,0.00250487]
[1760017707738,0.31069572,122870.0,122860.0,0.23962487]
[1760017708157,0.31069572,122870.0,122860.0,0.2391679]
[1760017708366,0.31069572,122870.0,122860.0,0.2381679]
[1760017708633,0.31069572,122870.0,122860.0,0.2391679]
[1760017708923,0.74855271,122870.0,122860.0,0.0020479]
[1760017709122,0.7658818,122870.0,122860.0,0.0020479]
[1760017709373,0.74855271,122870.0,122860.0,0.1522079]
[1760017710299,0.74855271,122870.0,122860.0,0.0010479]
[1760017710495,0.38825092,122870.0,122860.0,0.2389679]
[1760017710767,0.74611111,122870.0,122860.0,0.0020479]
[1760017710966,1.08611111,122870.0,122860.0,0.0020479]
[1760017711468,1.08611111,122870.0,122860.0,0.1284479]
[1760017711945,1.08611111,122870.0,122860.0,0.1294479]
[1760017711946,1.10114918,122870.0,122860.0,0.1294479]
[1760017712188,1.08611111,122870.0,122860.0,0.2370079]
[1760017712599,1.10114856,122870.0,122860.0,0.2388479]
[1760017712774,1.10114856,122870.0,122860.0,0.0020479]
[1760017712999,1.10114856,122870.0,122860.0,0.2388479]
[1760017713207,1.10114856,122870.0,122860.0,0.0020479]
[1760017713414,1.10114794,122870.0,122860.0,0.0010479]
[1760017713751,1.10114794,122870.0,122860.0,0.0020479]
[1760017714120,1.08611111,122870.0,122860.0,0.0020479]
[1760017714277,1.08611111,122870.0,122860.0,0.0010479]
[1760017714489,1.10114701,122870.0,122860.0,0.0010479]
[1760017714682,1.33782701,122870.0,122860.0,0.0010479]
[1760017715113,0.16282667,122830.0,122820.0,0.08464]
[1760017715275,0.53412686,122830.0,122820.0,0.08479227]
[1760017715478,0.58548686,122830.0,122820.0,0.32183227]
[1760017716132,0.58548686,122830.0,122820.0,0.08479227]
[1760017716373,0.74453895,122830.0,122820.0,0.08479227]
[1760017716486,0.75277548,122830.0,122820.0,0.08479227]
[1760017716707,0.31898526,122830.0,122820.0,0.08479227]
[1760017716915,0.01344,122830.0,122820.0,0.27934647]
[1760017717121,0.01344,122830.0,122820.0,0.52085219]
[1760017717520,0.01344,122830.0,122820.0,0.52185219]
[1760017717753,0.17626667,122830.0,122820.0,0.52185219]
[1760017717955,0.17626667,122830.0,122820.0,0.28381219]
[1760017718193,0.19681667,122830.0,122820.0,0.0149917]
[1760017718344,0.19681667,122830.0,122810.0,0.0301519]
[1760017718345,0.16283992,122820.0,122810.0,0.0301519]
[1760017718550,0.19031992,122820.0,122810.0,0.51464508]
[1760017719766,0.17641883,122830.0,122820.0,0.16283992]
[1760017719971,0.17641871,122830.0,122820.0,0.19909992]
[1760017720178,0.19754871,122830.0,122820.0,0.17905992]
[1760017720384,0.19754871,122830.0,122820.0,0.16383992]
[1760017720614,0.03472204,122830.0,122820.0,0.40083992]
[1760017720827,0.19836178,122830.0,122820.0,0.16586227]
[1760017721027,0.19836178,122830.0,122820.0,0.40286227]
[1760017721439,0.19836178,122830.0,122820.0,0.16586227]
[1760017721647,0.26594845,122830.0,122820.0,0.16586227]
[1760017721869,0.19754871,122830.0,122820.0,0.1650492]
[1760017722078,0.01359204,122830.0,122820.0,0.4392292]
[1760017722670,0.00015204,122830.0,122820.0,0.4983511]
[1760017722903,0.00015204,122830.0,122820.0,0.58128623]